Cogmind - Beta 9.2 @@@ ROGUE MODE // 2019.12.13 @ 18:57:51 Player: Fleshy Vegetable Bird Result: Destroyed by as-44891 with Assembled Maul Performance ------------- Evolutions (0) 0 Regions Visited (4) 800 Robots Destroyed (28) 140 Value Destroyed (242) 242 Prototype IDs (0) 0 Alien Tech Used (0) 0 Bonus (0) 0 TOTAL SCORE: 1182 Bonus ------- None Cogmind --------- Core Integrity 0/250 Matter 166/300 Energy 100/100 System Corruption 1% Temperature Cool (0) Movement Treading (160) Location -9/Mines Parts ------- > --- POWER (1) -------- (None) > --- PROPULSION (2) --- Light Treads Light Treads > --- UTILITY (2) ------ Large Storage Unit Large Storage Unit > --- WEAPON (2) ------- Rocket Launcher > --- INVENTORY (16) --- Ion Engine Light Ion Engine Nuclear Core Reinforced Deuterium Engine Fission Core Compact Matter Pod (150) Improved Sensor Array Assault Rifle Bore Cannon Mining Laser Peak State ------------ > --- POWER ------------ Ion Engine > --- PROPULSION ------- Wheel Wheel > --- UTILITY ---------- Large Storage Unit Large Storage Unit > --- WEAPON ----------- EM Pulse Gun Small Laser > --- INVENTORY -------- Ion Engine Light Ion Engine Reinforced Deuterium Engine Light Treads Light Treads Wheel Wheel Wheel Wheel Compact Matter Pod Assault Rifle Assault Rifle Grenade Launcher Rocket Launcher Mining Laser [Rating: 9] Favorites ----------- Power Ion Engine Engine Ion Engine Propulsion Wheel Treads Light Treads Wheel Wheel Utility Large Storage Unit Storage Large Storage Unit Weapon EM Pulse Gun Energy Gun EM Pulse Gun Launcher Rocket Launcher Build | -11 -10 -10 -10 -9 ------- Run | Scr Mat Min Exi Min Slots Evolved . | . . . . . Power . | . . . . . Propulsion . | . . . . . Utility . | . . . . . Weapon . | . . . . . Parts Attached 16 | 6 2 . 1 7 Power 1 | 1 . . . . Engine 1 | 1 . . . . Core . | . . . . . Reactor . | . . . . . Propulsion 8 | 2 . . 1 5 Treads 2 | . . . . 2 Leg . | . . . . . Wheel 6 | 2 . . 1 3 Hover . | . . . . . Flight . | . . . . . Utility 3 | 1 2 . . . Device . | . . . . . Storage 3 | 1 2 . . . Processor . | . . . . . Hackware . | . . . . . Protection . | . . . . . Artifact . | . . . . . Weapon 4 | 2 . . . 2 Energy Gun 2 | 2 . . . . Energy Cannon . | . . . . . Ballistic Gun . | . . . . . Ballistic Cannon . | . . . . . Launcher 2 | . . . . 2 Special Weapon . | . . . . . Impact Weapon . | . . . . . Slashing Weapon . | . . . . . Piercing Weapon . | . . . . . Special Melee Weapon . | . . . . . Unidentified Prototypes . | . . . . . Parts Lost 8 | . . . . 8 Power 1 | . . . . 1 Propulsion 4 | . . . . 4 Utility . | . . . . . Weapon 3 | . . . . 3 Highest Loss Streak 8 | . . . . 8 Average Slot Usage (%) 98 | . 100 100 100 81 Engine 13 | . 14 14 14 8 Wheel 27 | . 28 28 28 19 Storage 28 | . 28 28 28 28 Energy Gun 26 | . 28 28 28 14 Naked Turns . | . . . . . Heaviest Build 40 | 12 40 40 40 40 Greatest Support 40 | 20 20 20 20 40 Greatest Overweight (x) 3 | 1 1 1 1 3 Average Overweight (x) . | . . 1 1 . Largest Inventory Capacity 16 | 6 16 16 16 16 Average Capacity 15 | 5 15 16 16 16 Most Carried 16 | 6 9 14 16 16 Average Carried 11 | 4 7 10 15 14 Final Capacity 16 | 6 16 16 16 16 Final Carried 16 | 6 9 14 16 10 Class Distribution -------------------- 100% | Mutant Dominant Class ---------------- Mutant | -10/Materials Mutant | -10/Mines Mutant | -10/Exiles Mutant | -9/Mines Resources | -11 -10 -10 -10 -9 ----------- Run | Scr Mat Min Exi Min Matter Collected 310 | 260 . 40 . 10 Remotely . | . . . . . Salvage Created 534 | 190 13 298 . 33 Parts 34 | 11 3 20 . . Haulers Intercepted . | . . . . . Recyclers Shooed . | . . . . . Parts Field Recycled . | . . . . . Retrieved Matter . | . . . . . Parts Self-Destructed . | . . . . . Prevented . | . . . . . Kills | -11 -10 -10 -10 -9 ------- Run | Scr Mat Min Exi Min Combat Hostiles Destroyed 18 | . . 4 . 14 Guns 4 | . . 4 . . AOE 14 | . . . . 14 Classes Destroyed 7 | 2 1 3 . 1 Worker 1 | . . 1 . . Builder 1 | . . 1 . . Tunneler 6 | 5 . 1 . . Recycler 1 | 1 . . . . Operator 1 | . 1 . . . Grunt 4 | . . 4 . . Assembled 14 | . . . . 14 Best Kill Streak 14 | 4 1 2 . 14 Combat Bots Only 14 | . . 2 . 14 Max Kills in Single Turn 4 | 1 1 1 . 4 Gunslinging . | . . . . . Exploded 4 | . . . . 4 Melee . | . . . . . Uniques/NPCs Destroyed . | . . . . . Combat | -11 -10 -10 -10 -9 -------- Run | Scr Mat Min Exi Min Damage Taken 960 | . . 187 . 773 Core 276 | . . 51 . 225 Absorbed by Shields . | . . . . . Core Remaining (%) 100 | 100 . . . . Volleys Fired 45 | 10 2 24 . 9 Largest 2 | 2 2 2 . 1 Hottest 80 | 80 80 80 . 33 Shots Fired 81 | 20 4 48 . 9 Gun 72 | 20 4 48 . . Cannon . | . . . . . Launcher 9 | . . . . 9 Special . | . . . . . Kinetic . | . . . . . Thermal 36 | 10 2 24 . . Explosive 9 | . . . . 9 Electromagnetic 36 | 10 2 24 . . Robot Hit Streak 15 | 7 1 15 . 5 Robot Miss Streak 4 | 4 1 4 . 4 Penetration Max . | . . . . . Secondary Targets . | . . . . . Shots Hit Robots 48 | 12 1 30 . 5 Core Hits 42 | 6 1 12 . 23 Critical Hits . | . . . . . Critical Kills . | . . . . . Critical Parts Destroyed . | . . . . . Melee Attacks . | . . . . . Impact . | . . . . . Slashing . | . . . . . Piercing . | . . . . . Sneak Attacks . | . . . . . Combat Hostiles . | . . . . . Follow-up Attacks . | . . . . . Damage Inflicted 1427 | 144 28 383 . 872 Guns 555 | 144 28 383 . . Cannons . | . . . . . Explosions 872 | . . . . 872 Melee . | . . . . . Ramming . | . . . . . Kinetic . | . . . . . Thermal 209 | 78 10 121 . . Explosive 872 | . . . . 872 Electromagnetic 346 | 66 18 262 . . Impact . | . . . . . Slashing . | . . . . . Piercing . | . . . . . Highest Corruption 1 | . . . . 1 Average Corruption 1 | . . . . 1 Corruption Purged . | . . . . . Overload Shots . | . . . . . Overflow Damage 54 | . . . . 54 Projectiles . | . . . . . Explosions 54 | . . . . 54 Melee . | . . . . . Knockbacks . | . . . . . Impact . | . . . . . Kinetic . | . . . . . Secondary . | . . . . . Self-Inflicted Damage 85 | . . . . 85 Shots 3 | . . . . 3 Rammed . | . . . . . Targets Rammed . | . . . . . Kicked . | . . . . . Crushed . | . . . . . Highest Temperature 224 | 126 18 224 . . Average Temperature 68 | 57 12 75 . . Received Heat Transfer 165 | . . 105 . 60 Siege Activations . | . . . . . Robots Corrupted . | . . . . . Combat Hostiles . | . . . . . Parts Fried 1 | . . 1 . . Impact Corruptions . | . . . . . Robots Melted . | . . . . . Combat Hostiles . | . . . . . Parts Melted 1 | 1 . . . . Heat Transferred 475 | 175 25 275 . . Parts Sabotaged . | . . . . . Parts Stolen . | . . . . . Parts Stripped . | . . . . . Power Chain Reactions . | . . . . . Missiles Intercepted . | . . . . . Alert | -11 -10 -10 -10 -9 ------- Run | Scr Mat Min Exi Min Peak Influence 138 | 30 83 138 . 15 Average Influence 38 | 12 61 43 . . Maximum Alert Level . | . . . . . Low Security (%) 100 | 100 100 100 . 100 Level 1 . | . . . . . Level 2 . | . . . . . Level 3 . | . . . . . Level 4 . | . . . . . Level 5 . | . . . . . High Security . | . . . . . Max Security . | . . . . . Squads Dispatched 2 | . 2 . . . Investigation 1 | . 1 . . . Extermination . | . . . . . Reinforcement 1 | . 1 . . . Assault . | . . . . . Garrison . | . . . . . Intercept . | . . . . . Construction Impeded . | . . . . . Haulers Reinforced . | . . . . . Stealth | -11 -10 -10 -10 -9 --------- Run | Scr Mat Min Exi Min Distress Signals . | . . . . . Communications Jammed . | . . . . . Distress Signals . | . . . . . Times Spotted 34 | . 3 4 . 27 Peak Tracking Total 23 | . 3 2 . 23 Tactical Retreats 3 | . . . . 3 Traps | -11 -10 -10 -10 -9 ------- Run | Scr Mat Min Exi Min Traps Triggered 1 | . 1 . . . Indirectly . | . . . . . Trap Hack Attempts . | . . . . . Triggered . | . . . . . Disarmed . | . . . . . Reprogrammed . | . . . . . Reused . | . . . . . Traps Extracted . | . . . . . Installed . | . . . . . Triggered . | . . . . . Machines | -11 -10 -10 -10 -9 ---------- Run | Scr Mat Min Exi Min Machines Disabled 1 | . 1 . . . Max in Single Turn 1 | . 1 . . . Machines Sabotaged . | . . . . . Garrisons Compromised . | . . . . . Overloaded Fab Kills . | . . . . . Fab Network Shutdowns . | . . . . . Hacking | -11 -10 -10 -10 -9 --------- Run | Scr Mat Min Exi Min Machines Accessed 2 | . 1 1 . . Terminals 2 | . 1 1 . . Fabricators . | . . . . . Repair Stations . | . . . . . Recycling Units . | . . . . . Scanalyzers . | . . . . . Garrison Access . | . . . . . Total Hacks 5 | . 2 3 . . Successful 2 | . 1 1 . . Failed 3 | . 1 2 . . Catastrophic . | . . . . . Database Lockouts . | . . . . . Manual 5 | . 2 3 . . Terminals 5 | . 2 3 . . Fabricators . | . . . . . Repair Stations . | . . . . . Recycling Units . | . . . . . Scanalyzers . | . . . . . Garrison Access . | . . . . . Terminal Hacks . | . . . . . Fabricator Hacks . | . . . . . Repair Station Hacks . | . . . . . Recycling Unit Hacks . | . . . . . Scanalyzer . | . . . . . Garrison Access Hacks . | . . . . . Unauthorized Hacks 7 | . 3 4 . . Terminals 2 | . 1 1 . . Botnet 1 | . 1 . . . Disrupt 1 | . . 1 . . Fabricators . | . . . . . Repair Stations . | . . . . . Recycling Units . | . . . . . Scanalyzers . | . . . . . Garrison Access . | . . . . . Data Cores Recovered . | . . . . . Used . | . . . . . Hacking Detections 2 | . 1 1 . . Full Trace Events . | . . . . . Feedback Events . | . . . . . Feedback Blocked . | . . . . . Robot Schematics Acquired . | . . . . . Robots Built . | . . . . . Matter . | . . . . . Time . | . . . . . Total Robot Build Rating . | . . . . . Part Schematics Acquired . | . . . . . Parts Built . | . . . . . Matter . | . . . . . Time . | . . . . . Total Part Build Rating . | . . . . . Parts Repaired . | . . . . . Time . | . . . . . Parts Recycled . | . . . . . Recycled Matter . | . . . . . Retrieved Matter . | . . . . . Retrieved Components . | . . . . . Parts Scanalyzed . | . . . . . Part Schematics Acquired . | . . . . . Parts Damaged . | . . . . . Bothacking | -11 -10 -10 -10 -9 ------------ Run | Scr Mat Min Exi Min Used RIF Installer . | . . . . . Robots Hacked . | . . . . . Non-combat . | . . . . . Combat . | . . . . . Robot Hacks Applied . | . . . . . Relay Couplers Released . | . . . . . Robots Rewired . | . . . . . Allies Hacked . | . . . . . Hacks Repelled . | . . . . . Allies | -11 -10 -10 -10 -9 -------- Run | Scr Mat Min Exi Min Total Allies . | . . . . . Largest Group . | . . . . . Highest-Rated Group . | . . . . . Highest-Rated Ally . | . . . . . Total Orders . | . . . . . Ally Attacks . | . . . . . Total Damage . | . . . . . Kills . | . . . . . Allies Corrupted . | . . . . . Allies Melted . | . . . . . Intel | -11 -10 -10 -10 -9 ------- Run | Scr Mat Min Exi Min Robot Analysis Total . | . . . . . Derelict Logs Recovered 2 | . . 2 . . Drone Launches . | . . . . . Drone Recoveries . | . . . . . Exploration | -11 -10 -10 -10 -9 ------------- Run | Scr Mat Min Exi Min Turns Passed 1475 | 90 124 772 390 99 Spaces Moved 1305 | 54 121 639 428 63 Core 16 | 16 . . . . Treads 5 | . . . . 5 Legs . | . . . . . Wheels 1284 | 38 121 639 428 58 Hover . | . . . . . Flight . | . . . . . Fastest Speed 50 | 50 80 90 90 90 Average Speed 89 | 72 89 90 90 96 Slowest Speed 160 | 90 90 90 90 160 Overloaded Moves . | . . . . . Propulsion Burnouts . | . . . . . Robots Hopped . | . . . . . Cave-ins Triggered . | . . . . . Exploration Rate (%) 49 | 3 31 98 89 24 Regions Visited 4 Branch Regions 3 Pre-discovered Areas 1 | . . 1 . . Known Exits Taken . | . . . . . Unknown Exits Taken 4 | 1 1 1 1 . Scrap Searched 3 | . . 2 . 1 Spaces Dug . | . . . . . Terrain Destroyed 55 | . . . . 55 Melee . | . . . . . Projectile . | . . . . . AOE 55 | . . . . 55 Actions | -11 -10 -10 -10 -9 --------- Run | Scr Mat Min Exi Min Total 1528 | 85 132 787 432 92 Wait 129 | . . 120 . 9 Move 1301 | 53 120 638 427 63 Hop . | . . . . . Pick Up 30 | 14 6 5 3 2 Fast Attach . | . . . . . Attach 13 | 6 1 . . 6 Detach . | . . . . . Swap 3 | . 1 . 1 1 Drop 7 | 2 2 . 1 2 Fire 45 | 10 2 24 . 9 Melee . | . . . . . Ram . | . . . . . Kick . | . . . . . Crush . | . . . . . Escape Stasis . | . . . . . Rewire . | . . . . . Trap . | . . . . . Miscellaneous . | . . . . . Route ------- -11/Scrapyard -10/Materials -10/Mines (discovered 3 exits: [*Mat x2] / [*Exi]) -10/Exiles -9/Mines History --------- Turn | Location | Event 33 | -11/Scrapyard | Discovered new exit (range 15) 91 | -11/Scrapyard | Entered Materials 200 | -10/Materials | Discovered new exit (range 13) 215 | -10/Materials | Entered Mines 302 | -10/Mines | Discovered new exit (range 12) 312 | -10/Mines | Build established: Mutant 339 | -10/Mines | Deemed a non-threat by the Exiles lab entrance 339 | -10/Mines | Discovered new exit (range 5) 414 | -10/Mines | Discovered new exit (range 5) 438 | -10/Mines | Learned location of Zion (-6) 455 | -10/Mines | Received a Rocket Launcher from a helpful Derelict 496 | -10/Mines | Learned Materials trap positions 987 | -10/Mines | Entered Exiles 987 | -10/Exiles | Found Exiles lab abandoned 1369 | -10/Exiles | Discovered new exit (range 11) 1377 | -10/Exiles | Entered Mines 1415 | -9/Mines | Assembled infested the area 1420 | -9/Mines | Assisted by a Guerilla fighting off Assembled 1439 | -9/Mines | Core integrity fell below 50% 1456 | -9/Mines | Core integrity fell below 20% 1476 | -9/Mines | Destroyed by as-44891 with Assembled Maul Last Messages --------------- 01447_ as-81826 destroyed. 01449_ as-59860 destroyed. 01451_ as-15253 destroyed. 01452_ Wheel destroyed. 01453_ as-63232 destroyed. 01453_ as-22409 destroyed. 01454_ Wheel destroyed. 01455_ as-48887 destroyed. 01455_ Grenade Launcher destroyed. 01455_ Destroyed Grenade Launcher. 01460_ as-89853 destroyed. 01460_ as-16644 destroyed. 01460_ Destroyed Asb. F-torch. 01460_ as-26693 destroyed. 01460_ Destroyed Asb. F-torch. 01460_ as-10736 destroyed. 01460_ Destroyed Asb. Hover Unit. 01462_ as-99775 destroyed. 01464_ as-08572 destroyed. 01466_ as-77759 destroyed. Map ----- +----------------------------------------------------+ | ?????????????????????????????????? | | ?????????????????????????????????? | | ?????????????????????????????????? | | ?????????????????????????????????? | | ?????????????????????????????????? | | ?????????????????????????????????? | | ?????????????????????????????????? | | ?????????????????????????????????? | | ?????????????????????????????????? | | ?????????????????????????????????? | | ?????????????????????????????????? | | ????????????? ???????????????????? | | ????????????? ??????????????????? | | ????????????# ???????????????????? | | ???????????# ???????????????????? | | ??????????? ???????????????????? | | ??????????? ????????????????????? | | ?????????## ????????????????????? | | ???????### ????????????????????? | | ??????## ?????????????????????? | | ??????# ?????????????????????? | | ??????# #?????????????????????? | | ??????# #?????????????????????? | | ??????# #?????????????????????? | | ??????# ##????????????????????? | | ???????# @ ####????? ????????? | | ???????## a ##???? ??????? | | ????????## #??? ??????? | | ?????????## #??? ??????? | | ????????### #??# #???????? | | ????????# #?? #????????? | | ????????# #?# #????????? | | ?????# ## #????????? | | ????## #?????????? | | ???## #??????????? | | ???# #??????????? | | ???# #???????????? | | ???# ##???????????? | | ???## # #??????####### | | ????# ? ##??????# | | ????## #? # #???????# ##### | | ?????# ??### ##?####### #???? | | ?????# #????# #??# #???? | | ?????# ?????# #??# ##### #???? | | ?????## #?????# %#??# #???# ##??? | | ??????###??????# =#### #??## ##?? | | ???????????????#[ =%% #??# ### | | ???????????????# ######??# | | ?????????????# #???????# | | ?????????????# #???????## | +----------------------------------------------------+ Best States ------------- Heat Dissipation 25 Energy Generation 10 Energy Capacity 250 Matter Stores 300 Matter Capacity 300 Sight Range 16 Terrain Scan Density 10 Evasion (%) 44 Recoil Reduction 2 Item Schematics ----------------- None Robot Schematics ------------------ None Fabricated ------------ Nothing Alien Tech Used ----------------- None Achievements -------------- None Challenges ------------ None Game ------ Seed TrapArchitectTreads Manual? 0 Play Time 00:12:03 Cumulative 239.8 hours Start 2019.12.13 @ 18:47:27 End 2019.12.13 @ 18:57:51 Sessions 1 Manual Loads 0 Difficulty Rogue Special Mode None Game No. 308 Rogue 308 Adventurer 0 Explorer 0 Win Type - Total 2 Types 1/0/0/1/0/0/0 Lore% 59 Gallery% 80 Achievement% 56 Wizard Run 0 Options --------- ASCII 0 Keyboard 0 Movement Numpad Keybinds 0 Fullscreen 1 Font 16/Terminus Map View 75x55 Tactical HUD 1 Map Filters NONE Filters NONE Steam 1 RUN: 84113d92-77c7-48ad-a567-2045e98c4eeb